bitfinex-derivatives/quotes_BTCF0:USTF0_20251119
["timestamp","ask_amount","ask_price","bid_price","bid_amount"]
[1763587021348,0.40506,89936.0,89935.0,0.04438]
[1763587021554,0.40725803,89936.0,89935.0,0.04511267]
[1763587022658,0.40825803,89936.0,89935.0,0.04511267]
[1763587024260,0.001,89936.0,89935.0,0.40591267]
[1763587024463,0.16396,89955.0,89954.0,0.04239]
[1763587024661,0.16615803,89955.0,89954.0,0.04312267]
[1763587025458,0.05835803,89955.0,89954.0,0.04312267]
[1763587025655,0.05835803,89955.0,89954.0,0.00073267]
[1763587025958,0.16715803,89955.0,89954.0,0.04312267]
[1763587026260,0.00319803,89955.0,89954.0,0.04312267]
[1763587026564,0.001,89955.0,89954.0,0.04312267]
[1763587026766,0.00027788,89966.0,89965.0,0.15367]
[1763587026979,0.00027788,89966.0,89965.0,0.51520267]
[1763587027871,0.00027788,89966.0,89965.0,0.40392267]
[1763587028064,0.04362788,89966.0,89965.0,0.40392267]
[1763587028367,0.00027788,89966.0,89965.0,0.40392267]
[1763587028558,0.04582591,89966.0,89965.0,0.40392267]
[1763587029158,0.01308,89982.0,89965.0,0.36153267]
[1763587029371,0.04554803,89981.0,89980.0,0.02121]
[1763587029557,0.04554803,89981.0,89980.0,0.02194267]
[1763587030170,0.04554803,89981.0,89980.0,0.04312267]
[1763587030364,0.04554803,89981.0,89980.0,0.00073267]
[1763587031167,0.04335,89979.0,89978.0,0.3608]
[1763587031356,0.04554803,89979.0,89978.0,0.36153267]
[1763587032164,0.04554803,89979.0,89978.0,0.38274267]
[1763587032669,0.04554803,89979.0,89978.0,0.36153267]
[1763587034873,0.04335,89966.0,89965.0,0.36096677]
[1763587035170,0.04554803,89966.0,89965.0,0.36169944]
[1763587035667,0.04554803,89966.0,89965.0,0.40408944]
[1763587035668,0.00219803,89966.0,89965.0,0.40408944]
[1763587035868,0.16419,89973.0,89972.0,0.04239]
[1763587036164,0.16638803,89973.0,89972.0,0.04312267]
[1763587036359,0.16638803,89973.0,89972.0,0.00073267]
[1763587036560,0.04335,89966.0,89965.0,0.36096677]
[1763587036869,0.04554803,89966.0,89965.0,0.32669944]
[1763587041770,0.04554803,89966.0,89965.0,0.00089944]
[1763587042073,0.04335,89947.0,89946.0,0.40319]
[1763587042275,0.04554803,89947.0,89946.0,0.40392267]
[1763587042972,0.00219803,89947.0,89946.0,0.40392267]
[1763587043173,0.04554803,89947.0,89946.0,0.40392267]
[1763587043374,0.00219803,89947.0,89946.0,0.40392267]
[1763587043677,0.02196645,89955.0,89954.0,0.04239]
[1763587043859,0.02416448,89955.0,89954.0,0.04312267]
[1763587044062,0.00236448,89955.0,89954.0,0.04312267]
[1763587044270,0.00236448,89955.0,89954.0,0.40392267]
[1763587045163,0.00016645,89955.0,89954.0,0.40392267]
[1763587045770,0.15107,89977.0,89976.0,0.04239]
[1763587045971,0.15107,89977.0,89976.0,0.02194267]
[1763587045972,0.15326803,89977.0,89976.0,0.02194267]
[1763587046273,0.15326803,89977.0,89976.0,0.00073267]
[1763587046671,0.15326803,89977.0,89968.0,0.00016677]
[1763587046973,0.05754,89955.0,89954.0,0.3608]
[1763587047178,0.04594803,89955.0,89954.0,0.04542267]
[1763587047475,0.04594803,89955.0,89954.0,0.02281267]
[1763587047674,0.04594803,89955.0,89954.0,0.00073267]
[1763587047870,0.05094803,89955.0,89954.0,0.00073267]
[1763587048075,0.05094803,89955.0,89954.0,0.04542267]
[1763587049370,0.005,89955.0,89954.0,0.04542267]
[1763587050074,0.02958803,89955.0,89954.0,0.04542267]
[1763587050278,0.05094803,89955.0,89954.0,0.04542267]
[1763587050572,0.05094803,89955.0,89954.0,0.00073267]
[1763587051274,0.00719803,89955.0,89954.0,0.04542267]
[1763587051477,0.005,89955.0,89954.0,0.04542267]
[1763587051678,0.0042778,89955.0,89954.0,0.04542267]
[1763587052979,0.00647583,89955.0,89954.0,0.04542267]
[1763587053176,0.0042778,89955.0,89954.0,0.04542267]
[1763587053882,0.0042778,89955.0,89954.0,0.40622267]
[1763587056782,0.05133583,89955.0,89954.0,0.40622267]
[1763587057077,0.0042778,89955.0,89954.0,0.40622267]
[1763587062175,0.0269278,89955.0,89954.0,0.40622267]
[1763587062782,0.06518583,89955.0,89954.0,0.36153267]
[1763587062987,0.42598583,89955.0,89954.0,0.00073267]
[1763587063376,0.04486,89947.0,89946.0,0.00016677]
[1763587063587,0.04705803,89947.0,89946.0,0.00016677]
[1763587064584,0.04486,89935.0,89934.0,0.3608]
[1763587064790,0.00219803,89935.0,89934.0,0.40667267]
[1763587065383,0.02484803,89935.0,89934.0,0.40667267]
[1763587065885,0.04705803,89935.0,89934.0,0.40667267]
[1763587067390,0.04705803,89935.0,89934.0,0.38340267]
[1763587067593,0.04705803,89935.0,89934.0,0.36153267]
[1763587069589,0.04705803,89935.0,89934.0,0.00073267]
[1763587069894,0.04486,89927.0,89926.0,0.36124478]
[1763587070085,0.04705803,89927.0,89926.0,0.36197745]
[1763587070483,0.04705803,89927.0,89926.0,0.40711745]
[1763587070683,0.04705803,89927.0,89926.0,0.04631745]
[1763587071186,0.04705803,89927.0,89926.0,0.00117745]
[1763587072893,0.40885803,89927.0,89926.0,0.00044478]
[1763587073400,0.04486,89915.0,89914.0,0.38267]
[1763587073690,0.04705803,89915.0,89914.0,0.36153267]
[1763587073894,0.04705803,89915.0,89914.0,0.40667267]
[1763587074686,0.04705803,89915.0,89914.0,0.36153267]
[1763587075083,0.04705803,89915.0,89914.0,0.38340267]
[1763587075290,0.04705803,89915.0,89914.0,0.40667267]
[1763587075898,0.04486,89907.0,89906.0,0.00016677]
[1763587076100,0.04486,89907.0,89906.0,0.02276944]
[1763587076101,0.04705803,89907.0,89906.0,0.02276944]
[1763587076594,0.04705803,89907.0,89906.0,0.00089944]
[1763587077103,0.13485441,89907.0,89906.0,0.00016677]
[1763587077403,0.04705803,89907.0,89906.0,0.00016677]
[1763587077787,0.04705803,89907.0,89906.0,0.00089944]
[1763587077993,0.04705803,89907.0,89906.0,0.00189944]
[1763587078392,0.04705803,89907.0,89906.0,0.04703944]
[1763587078594,0.04705803,89907.0,89906.0,0.00189944]
[1763587079402,0.04705803,89907.0,89906.0,0.00116677]
[1763587079590,0.04705803,89907.0,89906.0,0.00189944]
[1763587079787,0.04705803,89907.0,89906.0,0.02376944]
[1763587079986,0.13526395,89907.0,89906.0,0.02376944]
[1763587080185,0.04705803,89907.0,89906.0,0.02376944]
[1763587080594,0.04705803,89907.0,89906.0,0.04703944]
[1763587081192,0.00219803,89907.0,89906.0,0.40783944]
[1763587081395,0.3608,89932.0,89922.0,0.04514]
[1763587081396,0.04502677,89923.0,89922.0,0.04514]
[1763587081595,0.0472248,89923.0,89922.0,0.00073267]
[1763587081796,0.04486,89916.0,89915.0,0.3608]
[1763587082000,0.04705803,89916.0,89915.0,0.40534267]
[1763587082397,0.04742803,89916.0,89915.0,0.36153267]
[1763587084499,0.04742803,89916.0,89915.0,0.40534267]
[1763587085410,0.04742803,89916.0,89915.0,0.38397267]
[1763587085609,0.04742803,89916.0,89915.0,0.40534267]
[1763587087020,0.04742803,89916.0,89915.0,0.00173267]
[1763587087210,0.40822803,89916.0,89915.0,0.00173267]
[1763587087609,0.04742803,89916.0,89915.0,0.04654267]
[1763587087812,0.04742803,89916.0,89915.0,0.04554267]
[1763587088012,0.04742803,89916.0,89915.0,0.04454267]
[1763587088201,0.00219803,89916.0,89915.0,0.04454267]
[1763587088399,0.04788803,89916.0,89915.0,0.04454267]
[1763587088807,0.04788803,89916.0,89915.0,0.04554267]
[1763587089110,0.04788803,89916.0,89915.0,0.40634267]
[1763587089706,0.00016677,89923.0,89922.0,0.04381]
[1763587089901,0.00016677,89923.0,89922.0,0.04454267]
[1763587090910,0.0182578,89955.0,89922.0,0.04454267]
[1763587090911,0.0639478,89955.0,89937.0,0.00477]
[1763587091106,0.02530803,89940.0,89939.0,0.04381]
[1763587091415,0.06105803,89940.0,89939.0,0.04454267]
[1763587091604,0.06105803,89940.0,89939.0,0.00073267]
[1763587093213,0.04569,89932.0,89931.0,0.00016677]
[1763587093403,0.04788803,89932.0,89931.0,0.00016677]
[1763587093602,0.04788803,89932.0,89931.0,0.00089944]
[1763587095407,0.04788803,89932.0,89931.0,0.04470944]
[1763587096015,0.00219803,89932.0,89931.0,0.04470944]
[1763587096615,0.40649,89946.0,89945.0,0.04381]
[1763587096815,0.04788803,89946.0,89945.0,0.04454267]
[1763587097213,0.00219803,89946.0,89945.0,0.04454267]
[1763587097519,0.0042778,89955.0,89947.0,0.04381]
[1763587097715,0.0042778,89955.0,89947.0,0.04454267]
[1763587097922,0.0042778,89955.0,89947.0,0.40534267]
[1763587098121,0.0042778,89955.0,89954.0,0.1551037]
[1763587098308,0.0042778,89955.0,89954.0,0.15583637]
[1763587098512,0.37198072,89972.0,89965.0,0.11128]
[1763587098818,0.37198072,89972.0,89965.0,0.38397267]
[1763587098819,0.04816591,89966.0,89965.0,0.38397267]
[1763587099025,0.04816591,89966.0,89965.0,0.40534267]
[1763587099625,0.04816591,89966.0,89965.0,0.38397267]
[1763587099815,0.04916591,89966.0,89965.0,0.38397267]
[1763587100422,0.05416591,89966.0,89965.0,0.36153267]
[1763587100628,0.05967,89958.0,89957.0,0.00016677]
[1763587100826,0.06186803,89958.0,89957.0,0.00089944]
[1763587101919,0.06286803,89958.0,89957.0,0.02333944]
[1763587102122,0.00319803,89958.0,89957.0,0.04470944]
[1763587102324,0.02630803,89958.0,89957.0,0.04470944]
[1763587102526,0.00319803,89958.0,89957.0,0.04470944]
[1763587102925,0.02630803,89958.0,89957.0,0.04470944]
[1763587103731,0.06286803,89958.0,89957.0,0.04470944]
[1763587103922,0.06286803,89958.0,89957.0,0.00089944]
[1763587104529,0.06286803,89958.0,89957.0,0.02333944]
[1763587105233,0.00319803,89958.0,89957.0,0.15599934]
[1763587105723,0.001,89958.0,89957.0,0.15599934]
[1763587106524,0.00016677,89974.0,89973.0,0.1554902]
[1763587106831,0.00016677,89974.0,89973.0,0.51702287]
[1763587108639,0.00016677,89974.0,89973.0,0.40575267]
[1763587109242,0.05882,89990.0,89989.0,0.04422]
[1763587109540,0.06101803,89990.0,89989.0,0.04495267]
[1763587110739,0.00219803,89990.0,89989.0,0.04495267]
[1763587111046,0.40564,90005.0,90004.0,0.02258]
[1763587111249,0.40783803,90005.0,90004.0,0.04495267]
[1763587112246,0.40783803,90005.0,90004.0,0.04995267]
[1763587112544,0.40783803,90005.0,90004.0,0.05495267]
[1763587112941,0.04703803,90005.0,90004.0,0.05495267]
[1763587113539,0.04703803,90005.0,90004.0,0.01073267]
[1763587113745,0.40783803,90005.0,90004.0,0.01]
[1763587113941,0.04497,89987.0,89986.0,0.38295]
[1763587114137,0.04716803,89987.0,89986.0,0.40470267]
[1763587114946,0.00219803,89987.0,89986.0,0.40470267]
[1763587115147,0.04497,90002.0,90001.0,0.04317]
[1763587115348,0.04716803,90002.0,90001.0,0.04390267]
[1763587115543,0.04497,89996.0,89995.0,0.3608]
[1763587115743,0.04716803,89996.0,89995.0,0.00073267]
[1763587116655,0.05016803,89996.0,89995.0,0.00073267]
[1763587117151,0.05016803,89996.0,89995.0,0.02288267]
[1763587118756,0.10603803,89996.0,89995.0,0.02288267]
[1763587119247,0.04497,89987.0,89986.0,0.3608]
[1763587119454,0.04716803,89987.0,89986.0,0.36153267]
[1763587119756,0.04716803,89987.0,89986.0,0.40470267]
[1763587121464,0.04716803,89987.0,89986.0,0.36153267]
[1763587121752,0.05016803,89987.0,89986.0,0.00073267]
[1763587122057,0.05216803,89987.0,89986.0,0.00073267]
[1763587123049,0.04497,89982.0,89981.0,0.04333677]
[1763587123257,0.04716803,89982.0,89981.0,0.04406944]
[1763587123844,0.00219803,89982.0,89981.0,0.40486944]
[1763587124261,0.00419803,89982.0,89981.0,0.40486944]
[1763587124661,0.002,89982.0,89981.0,0.40486944]
[1763587125159,0.005,89982.0,89981.0,0.40486944]
[1763587125360,0.05216803,89982.0,89981.0,0.40486944]
[1763587126062,0.00719803,89982.0,89981.0,0.40486944]
[1763587127563,0.05216803,89982.0,89981.0,0.40486944]
[1763587128761,0.06540803,89982.0,89981.0,0.40486944]
[1763587129146,0.06540803,89982.0,89981.0,0.36169944]
[1763587129460,0.06540803,89982.0,89981.0,0.00089944]
[1763587130748,0.06540803,89982.0,89981.0,0.02304944]
[1763587131357,0.06540803,89982.0,89981.0,0.04406944]
[1763587131957,0.05216803,89982.0,89981.0,0.04406944]
[1763587132269,0.06540803,89982.0,89981.0,0.00089944]
[1763587132473,0.17666703,89982.0,89981.0,0.00016677]
[1763587132768,0.06540803,89982.0,89981.0,0.00089944]
[1763587133155,0.04497,89974.0,89973.0,0.3608]
[1763587133362,0.04716803,89974.0,89973.0,0.36153267]
[1763587133763,0.04716803,89974.0,89973.0,0.00073267]
[1763587134066,0.04497,89965.0,89964.0,0.40397]
[1763587134367,0.04716803,89965.0,89964.0,0.40470267]
[1763587134865,0.04716803,89965.0,89964.0,0.38368267]
[1763587135061,0.04916803,89965.0,89964.0,0.38368267]
[1763587135362,0.05116803,89965.0,89964.0,0.40470267]
[1763587136851,0.05116803,89965.0,89964.0,0.36153267]
[1763587138666,0.05116803,89965.0,89964.0,0.38368267]
[1763587139166,0.05116803,89965.0,89964.0,0.40470267]
[1763587139958,0.05116803,89965.0,89964.0,0.38368267]
[1763587140158,0.05116803,89965.0,89964.0,0.36153267]
[1763587140354,0.05116803,89965.0,89964.0,0.3608]
[1763587140868,0.05116803,89965.0,89964.0,0.40470267]
[1763587141263,0.05116803,89965.0,89964.0,0.38368267]
[1763587141462,0.05116803,89965.0,89964.0,0.36153267]
[1763587141770,0.04497,89957.0,89956.0,0.00016667]
[1763587142075,0.04716803,89957.0,89956.0,0.00016667]
[1763587143166,0.04816803,89957.0,89956.0,0.00016667]
[1763587143358,0.04363,89947.0,89946.0,0.40648]
[1763587143559,0.04582803,89947.0,89946.0,0.40721267]
[1763587143856,0.04363,89937.0,89936.0,0.40648]
[1763587144059,0.04582803,89937.0,89936.0,0.40721267]
[1763587144460,0.00219803,89937.0,89936.0,0.40721267]
[1763587145667,0.04582803,89937.0,89936.0,0.40721267]
[1763587146265,0.02398803,89937.0,89936.0,0.40721267]
[1763587146465,0.00219803,89937.0,89936.0,0.40721267]
[1763587147870,0.02398803,89937.0,89936.0,0.40721267]
[1763587148870,0.04582803,89937.0,89936.0,0.40721267]
[1763587149764,0.00219803,89937.0,89936.0,0.53141857]
[1763587150166,0.04582803,89937.0,89936.0,0.36153267]
[1763587150664,0.04582803,89937.0,89936.0,0.3608]
[1763587150863,0.04363,89934.0,89928.0,0.36096677]
[1763587151065,0.40662803,89934.0,89928.0,0.36096677]
[1763587152874,0.40662803,89934.0,89928.0,0.00016677]
[1763587153177,0.04363,89929.0,89928.0,0.00016677]
[1763587153477,0.04582803,89929.0,89928.0,0.00016677]
[1763587153679,0.04363,89927.0,89926.0,0.00027801]
[1763587153977,0.04592651,89927.0,89926.0,0.00027801]
[1763587154174,0.04363,89911.0,89910.0,0.40648]
[1763587154477,0.04592651,89911.0,89910.0,0.40648]
[1763587154670,0.04592651,89911.0,89910.0,0.40721267]
[1763587155075,0.00229651,89911.0,89910.0,0.40721267]
[1763587156579,9.848e-05,89911.0,89910.0,0.40721267]
[1763587156779,9.848e-05,89911.0,89910.0,0.76801267]
[1763587157772,0.00016677,89919.0,89918.0,0.1570182]
[1763587157975,0.00016677,89919.0,89918.0,0.51855087]
[1763587159279,0.0459948,89919.0,89918.0,0.36153267]
[1763587159473,0.0459948,89919.0,89918.0,0.02357267]
[1763587159870,0.0459948,89919.0,89918.0,0.04641267]
[1763587161074,0.0033648,89919.0,89918.0,0.40721267]
[1763587161281,0.0251548,89919.0,89918.0,0.40721267]
[1763587161474,0.0033648,89919.0,89918.0,0.40721267]
[1763587161980,0.0603548,89919.0,89918.0,0.40721267]
[1763587162178,0.0603548,89919.0,89918.0,0.04641267]
[1763587162477,0.0459948,89919.0,89918.0,0.04641267]
[1763587163073,0.0469948,89919.0,89918.0,0.04641267]
[1763587163278,0.0603548,89919.0,89918.0,0.04641267]
[1763587163577,0.0593548,89919.0,89918.0,0.04641267]
[1763587163973,0.0023648,89919.0,89918.0,0.04641267]
[1763587164173,0.0023648,89919.0,89918.0,0.40721267]
[1763587164876,0.0241548,89919.0,89918.0,0.40721267]
[1763587165177,0.0459948,89919.0,89918.0,0.40721267]
[1763587165378,0.0469948,89919.0,89918.0,0.40721267]
[1763587165884,0.0459948,89919.0,89918.0,0.40721267]
[1763587167280,0.0600948,89919.0,89918.0,0.04641267]
[1763587169483,0.0469948,89919.0,89918.0,0.04641267]
[1763587170489,0.0033648,89919.0,89918.0,0.40721267]
[1763587171580,0.00116677,89919.0,89918.0,0.40721267]
[1763587172082,0.00016677,89919.0,89918.0,0.40721267]
[1763587172977,0.40402,89939.0,89938.0,0.04289]
[1763587173178,0.40621803,89939.0,89938.0,0.04362267]
[1763587173578,0.04541803,89939.0,89938.0,0.04362267]
[1763587173887,0.00219803,89939.0,89938.0,0.04362267]
[1763587174081,0.04541803,89939.0,89938.0,0.04362267]
[1763587175181,0.04641803,89939.0,89938.0,0.04362267]
[1763587175790,0.00016677,89947.0,89946.0,0.1541936]
[1763587175983,0.0023648,89947.0,89946.0,0.04362267]
[1763587176980,0.0455848,89947.0,89946.0,0.04362267]
[1763587177182,0.0455848,89947.0,89946.0,0.05675267]
[1763587177183,0.0023648,89947.0,89946.0,0.05675267]
[1763587177584,0.0465848,89947.0,89946.0,0.04362267]
[1763587178393,0.0475848,89947.0,89946.0,0.00073267]
[1763587178587,0.0475848,89947.0,89946.0,0.04362267]
[1763587179878,0.0475848,89947.0,89946.0,0.02228267]
[1763587180083,0.0475848,89947.0,89946.0,0.00073267]
[1763587180284,0.04322,89936.0,89935.0,0.3608]
[1763587180586,0.04541803,89936.0,89935.0,0.40442267]
[1763587182289,0.00219803,89936.0,89935.0,0.40442267]
[1763587182494,0.00016677,89947.0,89946.0,0.1588336]
[1763587182695,0.00016677,89947.0,89946.0,0.15956627]
[1763587183384,0.00016677,89947.0,89946.0,0.04362267]
[1763587183385,0.0455848,89947.0,89946.0,0.04362267]
[1763587183791,0.0033648,89947.0,89946.0,0.05675267]
[1763587184497,0.0043648,89947.0,89946.0,0.05675267]
[1763587186792,0.0261148,89947.0,89946.0,0.05675267]
[1763587187093,0.0043648,89947.0,89946.0,0.05675267]
[1763587188789,0.00216677,89947.0,89946.0,0.05675267]
[1763587192793,0.0475848,89947.0,89946.0,0.04362267]
[1763587193094,0.0043648,89947.0,89946.0,0.04362267]
[1763587193598,0.00216677,89947.0,89946.0,0.04362267]
[1763587193986,0.04349788,89966.0,89965.0,0.04289]
[1763587194190,0.04569591,89966.0,89965.0,0.04362267]
[1763587194491,0.00247591,89966.0,89965.0,0.51570267]
[1763587194800,0.04322,89986.0,89965.0,0.00073267]
[1763587195099,0.01333,90008.0,89965.0,0.00073267]
[1763587195100,0.05671666,89984.0,89983.0,0.02155]
[1763587195301,0.00016666,89984.0,89983.0,0.04508803]
[1763587195595,0.04338666,89984.0,89983.0,0.00219803]
[1763587196098,0.00016666,89984.0,89983.0,0.04508803]
[1763587196295,0.04538666,89984.0,89983.0,0.00219803]
[1763587197195,0.04538666,89984.0,89983.0,0.04508803]
[1763587197386,0.04838666,89984.0,89983.0,0.00219803]
[1763587197591,0.04322,89968.0,89967.0,0.04305677]
[1763587197793,0.04322,89982.0,89981.0,0.04289]
[1763587198099,0.04322,89982.0,89981.0,0.04508803]
[1763587198396,0.05655,89982.0,89981.0,0.00219803]
[1763587199091,0.42035,89982.0,89981.0,0.00219803]
[1763587199499,0.42035,89982.0,89981.0,0.04508803]
[1763587199801,0.06155,89982.0,89981.0,0.04508803]
[1763587200194,0.36096666,89984.0,89981.0,0.04508803]
[1763587200195,0.00016666,89984.0,89981.0,0.04508803]
[1763587200398,0.01,90060.0,90009.0,0.1243556]
[1763587200601,0.01,90060.0,89967.0,0.00016677]
[1763587200602,0.01333,90072.0,90046.0,0.04289]
[1763587200803,0.01102975,90057.0,90012.0,0.1112208]
[1763587201006,0.00219803,90056.0,90022.0,0.1112094]
[1763587201301,0.01333,90090.0,90009.0,0.16521274]
[1763587201497,0.05574,90074.0,90038.0,0.1111897]
[1763587201696,0.01333,90072.0,90034.0,0.00016667]
[1763587201897,0.00219803,90071.0,90034.0,0.00016667]
[1763587202295,0.00219803,90071.0,90046.0,0.005]
[1763587202493,0.005,90078.0,90057.0,0.1111656]
[1763587202695,0.01333,90108.0,90075.0,0.111144]
[1763587203004,0.01333,90108.0,90072.0,0.1111473]
[1763587203297,0.00219803,90107.0,90071.0,0.00016656]
[1763587203893,0.01352,90076.0,90071.0,0.00016656]
[1763587204096,0.04652803,90072.0,90071.0,0.00016656]
[1763587204508,0.01352,90090.0,90071.0,0.40016656]
[1763587204695,0.00219803,90089.0,90071.0,0.00016656]
[1763587205199,0.01352,90076.0,90071.0,0.00016656]
[1763587205397,0.04652803,90072.0,90071.0,0.00016656]
[1763587205599,0.04752803,90072.0,90020.0,0.35881382]
[1763587205903,0.00319803,90072.0,90024.0,0.1112065]
[1763587206501,0.00319803,90072.0,90033.0,0.1111948]
[1763587206700,0.00016587,90062.0,90043.0,0.00016656]
[1763587206899,0.00219803,90061.0,90043.0,0.00016656]
[1763587207207,0.01352,90045.0,90043.0,0.00016656]
[1763587207397,0.00219803,90044.0,90043.0,0.00016656]
[1763587207600,0.04652803,90044.0,90033.0,0.001]
[1763587208000,0.00219803,90044.0,90033.0,0.001]
[1763587208202,0.00219803,90044.0,90043.0,0.001]
[1763587208415,0.01352,90060.0,90043.0,0.001]
[1763587208709,0.01571803,90060.0,90043.0,0.001]
[1763587209207,0.01352,90120.0,90052.0,0.1111714]
[1763587209511,0.00219803,90075.0,90050.0,0.0099999]
[1763587209699,0.01571803,90075.0,90037.0,0.1111909]
[1763587210206,0.01352,90030.0,90010.0,0.1112234]
[1763587210510,0.01352,90045.0,90019.0,0.1112133]
[1763587210698,0.01352,90060.0,90024.0,0.1112067]
[1763587210699,0.00016587,90036.0,90024.0,0.1112067]
[1763587210903,0.00219803,90059.0,90032.0,0.1111962]
[1763587211108,0.1111655,90058.0,90017.0,0.1112149]
[1763587211308,0.00219803,90057.0,90024.0,0.111207]
[1763587211712,0.00219803,90057.0,90037.0,0.001]
[1763587212214,0.01352,90090.0,90067.0,0.1111534]
[1763587212515,0.00219803,90089.0,90069.0,0.00016656]
[1763587212698,0.00219803,90089.0,90077.0,0.1111405]
[1763587212904,0.00219803,90089.0,90069.0,0.11131796]
[1763587213299,0.00219803,90089.0,90069.0,0.00016656]
[1763587213701,0.00219803,90089.0,90078.0,0.1111393]
[1763587214005,0.001,90089.0,90086.0,0.1111301]
[1763587214200,0.00219803,90087.0,90079.0,0.1111392]
[1763587214512,0.00219803,90087.0,90069.0,0.00016656]
[1763587214513,0.01352,90120.0,90096.0,0.1111178]
[1763587214813,0.002,90089.0,90086.0,0.11113]
[1763587215110,0.01352,90120.0,90082.0,0.1111353]
[1763587215310,0.00219803,90119.0,90082.0,0.1111353]
[1763587215514,0.00219803,90119.0,90113.0,0.1110965]
[1763587215812,0.00749581,90170.0,90121.0,0.1110869]
[1763587216117,0.1110388,90161.0,90122.0,0.111086]
[1763587216317,0.00749581,90170.0,90133.0,0.1110719]
[1763587216318,0.00219803,90143.0,90133.0,0.1110719]
[1763587216505,0.00219803,90143.0,90091.0,0.08727257]
[1763587216702,0.00219803,90143.0,90138.0,0.1110658]
[1763587217014,0.00749581,90170.0,90136.0,0.1110677]
[1763587217213,0.00219803,90165.0,90142.0,0.00016645]
[1763587217515,0.001,90143.0,90142.0,0.00016645]
[1763587217818,0.00219803,90165.0,90142.0,0.00016645]
[1763587218008,0.001,90143.0,90142.0,0.00016645]
[1763587218811,0.00749581,90170.0,90143.0,0.1110603]
[1763587219110,0.00749581,90170.0,90169.0,0.1110283]
[1763587219309,0.01352,90219.0,90130.0,0.0099999]
[1763587219310,0.01352,90219.0,90183.0,0.1110104]
[1763587219614,0.00219803,90201.0,90183.0,0.00016635]
[1763587220209,0.00219803,90201.0,90193.0,0.1109987]
[1763587220410,0.00219803,90201.0,90183.0,0.00016635]
[1763587220411,0.01352,90219.0,90195.0,0.1109956]
[1763587220609,0.01352,90236.0,90210.0,0.1109778]
[1763587220813,0.01571803,90236.0,90226.0,0.110957]
[1763587221006,0.01352,90253.0,90186.0,0.1110063]
[1763587221007,0.00219803,90235.0,90214.0,0.00016625]
[1763587221917,0.00219803,90235.0,90222.0,0.1109623]
[1763587222113,0.00219803,90235.0,90214.0,0.00016625]
[1763587222313,0.00219803,90235.0,90224.0,0.1109602]
[1763587222507,0.01352,90270.0,90242.0,0.1109385]
[1763587222703,0.01352,90270.0,90242.0,0.00219803]
[1763587222908,0.00073267,90269.0,90242.0,0.00219803]
[1763587223115,0.02244,90234.0,90233.0,0.00016625]
[1763587223315,0.01352,90220.0,90214.0,0.001]
[1763587223617,0.00073267,90215.0,90214.0,0.00319803]
[1763587223818,0.00073267,90215.0,90214.0,0.001]
[1763587223819,0.04506267,90215.0,90214.0,0.001]
[1763587224016,0.04506267,90215.0,90150.0,0.0099999]
[1763587224017,0.04433,90206.0,90150.0,0.0099999]
[1763587224212,0.01352,90180.0,90178.0,0.00219803]
[1763587224411,0.00073267,90179.0,90178.0,0.00016625]
[1763587224612,0.00073267,90179.0,90138.0,0.05948583]
[1763587224613,0.04433,90169.0,90138.0,0.05948583]
[1763587224804,0.04433,90169.0,90168.0,0.47643563]
[1763587224805,0.04506267,90169.0,90168.0,0.47643563]
[1763587225008,0.00082112,90169.0,90168.0,0.47643563]
[1763587225204,0.00082112,90169.0,90168.0,0.47843563]
[1763587225410,0.01352,90200.0,90171.0,0.1110258]
[1763587225614,0.01352,90220.0,90168.0,0.4762376]
[1763587225615,0.00073267,90199.0,90168.0,0.4762376]
[1763587225925,0.04506267,90199.0,90175.0,0.00016636]
[1763587226216,0.00016636,90193.0,90176.0,0.00219803]
[1763587226410,0.01352,90220.0,90198.0,0.1109926]
[1763587226611,0.05726,90200.0,90168.0,0.4742376]
[1763587226811,0.00073267,90199.0,90176.0,0.00219803]
[1763587227008,0.04391,90169.0,90130.0,0.0523769]
[1763587227213,0.01335,90180.0,90130.0,0.0523769]
[1763587227214,0.01335,90140.0,90131.0,0.00219803]
[1763587227412,0.01335,90160.0,90131.0,0.00219803]
[1763587227621,0.00016546,90145.0,90131.0,0.00219803]
[1763587227927,0.00016546,90145.0,90140.0,0.1110637]
[1763587228120,0.01335,90180.0,90147.0,0.1110546]
[1763587228323,0.00073267,90179.0,90148.0,0.00219803]
[1763587229122,0.00073267,90179.0,90154.0,0.00016636]
[1763587229318,0.00073267,90179.0,90178.0,0.00219803]
[1763587229517,0.01335,90216.0,90178.0,0.00219803]
[1763587229825,0.01335,90216.0,90192.0,0.1109995]
[1763587230023,0.00073267,90215.0,90195.0,0.1109959]
[1763587230223,0.00073267,90215.0,90196.0,0.00236439]
[1763587230812,0.00073267,90215.0,90204.0,0.1109846]
[1763587231023,0.1108654,90302.0,90215.0,0.1109717]
[1763587231024,0.1109242,90254.0,90215.0,0.1109717]
[1763587231221,0.1108654,90302.0,90217.0,0.00016625]
[1763587231222,0.04391,90218.0,90217.0,0.00016625]
[1763587231427,0.04464267,90218.0,90217.0,0.00219803]
[1763587231725,0.04495,90209.0,90208.0,0.00016625]
[1763587232024,0.04568267,90209.0,90188.0,0.1110044]
[1763587232226,0.04568267,90209.0,90189.0,0.00219803]
[1763587232415,0.04568267,90209.0,90168.0,0.2]
[1763587232416,0.04544,90190.0,90168.0,0.2]
[1763587232621,0.00073267,90169.0,90168.0,0.20219803]
[1763587232821,0.00016625,90178.0,90171.0,0.1110256]
[1763587233022,0.00089892,90178.0,90173.0,0.1110234]
[1763587233332,0.01291,90200.0,90179.0,0.1110156]
[1763587233527,0.04544,90190.0,90189.0,0.001]
[1763587233719,0.01291,90200.0,90189.0,0.00319803]
[1763587233924,0.00073267,90190.0,90189.0,0.00219803]
[1763587234323,0.01291,90200.0,90189.0,0.00219803]
[1763587234518,0.01335,90222.0,90212.0,0.1109745]
[1763587234829,0.04544,90209.0,90208.0,0.00016636]
[1763587235026,0.04617267,90209.0,90208.0,0.00236439]
[1763587235330,0.01335,90222.0,90218.0,0.1109674]
[1763587235530,0.01291,90288.0,90208.0,0.00236439]
[1763587235531,0.01291,90288.0,90221.0,0.00219803]
[1763587235730,0.00073267,90257.0,90245.0,0.1109337]
[1763587236033,0.00073267,90257.0,90256.0,0.00219803]
[1763587236331,0.04617267,90257.0,90256.0,0.00219803]
[1763587236717,0.00073267,90257.0,90256.0,0.00219803]
[1763587236924,0.01291,90275.0,90256.0,0.00219803]
[1763587236925,0.01291,90275.0,90264.0,0.1109108]
[1763587237114,0.00073267,90274.0,90264.0,0.1109108]
[1763587237319,0.00073267,90274.0,90273.0,0.00219803]
[1763587237520,0.01291,90310.0,90273.0,0.00219803]
[1763587237716,0.00073267,90309.0,90282.0,0.00016616]
[1763587237916,0.01291,90298.0,90282.0,0.00236419]
[1763587238126,0.00073267,90297.0,90283.0,0.1108875]
[1763587238429,0.01291,90310.0,90296.0,0.00219803]
[1763587238624,0.00073267,90309.0,90297.0,0.1108706]
[1763587238827,0.00073267,90309.0,90306.0,0.1108589]